[Event "Titled Tuesday Blitz April 18 Late 2023"]
[White "Aranda Marin, Cristian"]
[Black "Aldokhin, Ivan"]
[WhiteFideId "2205513"]
[BlackFideId "24115720"]
[WhiteElo "2233"]
[BlackElo "2322"]
[Result "0-1"]
[Round "03"]
[TimeControl "180+2"]
[Date "2023.04.18"]
[WhiteClock "0:00:45"]
[BlackClock "0:00:10"]

1. c4 {[%clk 0:03:00]}  Nf6 {[%clk 0:02:07]} 2. g3 {[%clk 0:02:58]}  d5 {[%clk 0:02:01]} 3. cxd5 {[%clk 0:02:57]}  Nxd5 {[%clk 0:02:02]} 4. Bg2 {[%clk 0:02:57]}  e5 {[%clk 0:01:58]} 5. a3 {[%clk 0:02:54]}  Nc6 {[%clk 0:01:53]} 6. b4 {[%clk 0:02:49]}  g5 {[%clk 0:01:50]} 7. Bb2 {[%clk 0:02:48]}  Bg7 {[%clk 0:01:49]} 8. Nc3 {[%clk 0:02:44]}  Nde7 {[%clk 0:01:47]} 9. d3 {[%clk 0:02:40]}  Ng6 {[%clk 0:01:39]} 10. Rc1 {[%clk 0:02:39]}  O-O {[%clk 0:01:38]} 11. Ne4 {[%clk 0:02:29]}  f5 {[%clk 0:01:28]} 12. Nc5 {[%clk 0:02:27]}  Kh8 {[%clk 0:01:26]} 13. e3 {[%clk 0:02:17]}  f4 {[%clk 0:01:24]} 14. Qh5 {[%clk 0:02:08]}  g4 {[%clk 0:00:58]} 15. Be4 {[%clk 0:02:05]}  Qf6 {[%clk 0:00:52]} 16. Ne2 {[%clk 0:02:00]}  Bf5 {[%clk 0:00:36]} 17. Bxf5 {[%clk 0:02:00]}  Qxf5 {[%clk 0:00:35]} 18. Qxf5 {[%clk 0:02:00]}  Rxf5 {[%clk 0:00:36]} 19. e4 {[%clk 0:01:59]}  Rf7 {[%clk 0:00:34]} 20. Nxb7 {[%clk 0:01:58]}  Nge7 {[%clk 0:00:27]} 21. gxf4 {[%clk 0:01:42]}  exf4 {[%clk 0:00:27]} 22. Bxg7+ {[%clk 0:01:43]}  Kxg7 {[%clk 0:00:28]} 23. Rg1 {[%clk 0:01:44]}  Ne5 {[%clk 0:00:25]} 24. Kd1 {[%clk 0:01:34]}  N7g6 {[%clk 0:00:16]} 25. d4 {[%clk 0:01:28]}  Nd3 {[%clk 0:00:15]} 26. Rxg4 {[%clk 0:01:23]}  Nxf2+ {[%clk 0:00:14]} 27. Kd2 {[%clk 0:01:22]}  Nxg4 {[%clk 0:00:15]} 28. h3 {[%clk 0:01:17]}  Nf2 {[%clk 0:00:14]} 29. Nc3 {[%clk 0:01:16]}  f3 {[%clk 0:00:11]} 30. Nc5 {[%clk 0:01:16]}  Nxh3 {[%clk 0:00:09]} 31. Ne6+ {[%clk 0:01:16]}  Kh8 {[%clk 0:00:08]} 32. Rf1 {[%clk 0:01:15]}  f2 {[%clk 0:00:07]} 33. Nd5 {[%clk 0:01:14]}  c6 {[%clk 0:00:05]} 34. Ne3 {[%clk 0:01:09]}  Ngf4 {[%clk 0:00:05]} 35. Nc5 {[%clk 0:01:06]}  Rd8 {[%clk 0:00:05]} 36. Nf5 {[%clk 0:01:04]}  Rxf5 {[%clk 0:00:05]} 37. exf5 {[%clk 0:01:04]}  Nh5 {[%clk 0:00:05]} 38. Ne6 {[%clk 0:01:01]}  Rd5 {[%clk 0:00:05]} 39. Rc1 {[%clk 0:00:53]}  Ng3 {[%clk 0:00:04]} 40. Rxc6 {[%clk 0:00:50]}  Rd8 {[%clk 0:00:03]} 41. Rc1 {[%clk 0:00:43]}  f1=Q {[%clk 0:00:04]} 42. Rxf1 {[%clk 0:00:44]}  Nxf1+ {[%clk 0:00:04]} 43. Ke1 {[%clk 0:00:43]}  Rd5 {[%clk 0:00:05]} 44. Kxf1 {[%clk 0:00:43]}  Rxf5+ {[%clk 0:00:06]} 45. Ke2 {[%clk 0:00:44]}  Nf4+ {[%clk 0:00:06]} 46. Nxf4 {[%clk 0:00:43]}  Rxf4 {[%clk 0:00:07]} 47. Ke3 {[%clk 0:00:44]}  Rf7 {[%clk 0:00:07]} 48. Ke4 {[%clk 0:00:44]}  h5 {[%clk 0:00:08]} 49. d5 {[%clk 0:00:44]}  h4 {[%clk 0:00:09]} 50. Ke5 {[%clk 0:00:45]}  h3 {[%clk 0:00:10]} 51. Ke6 {[%clk 0:00:45]}  Rf1 {[%clk 0:00:10]} 0-1


[Site "https://www.chess.com"]

[Event "Titled Tuesday Blitz April 18 Late 2023"]
[White "Wieczorek, Oskar"]
[Black "mrithyunjay"]
[WhiteFideId "1133950"]
[WhiteElo "2418"]
[BlackElo "2415"]
[Result "0-1"]
[Round "03"]
[TimeControl "180+2"]
[Date "2023.04.18"]
[WhiteClock "0:00:39"]
[BlackClock "0:01:16"]

1. e4 {[%clk 0:02:53]}  c5 {[%clk 0:02:59]} 2. Nf3 {[%clk 0:02:52]}  d6 {[%clk 0:02:59]} 3. d4 {[%clk 0:02:51]}  cxd4 {[%clk 0:03:00]} 4. Nxd4 {[%clk 0:02:52]}  Nf6 {[%clk 0:03:00]} 5. Nc3 {[%clk 0:02:52]}  a6 {[%clk 0:03:01]} 6. f4 {[%clk 0:02:44]}  e5 {[%clk 0:03:00]} 7. Nf3 {[%clk 0:02:44]}  Nbd7 {[%clk 0:03:00]} 8. a4 {[%clk 0:02:45]}  Be7 {[%clk 0:02:57]} 9. Bd3 {[%clk 0:02:46]}  O-O {[%clk 0:02:56]} 10. O-O {[%clk 0:02:47]}  b6 {[%clk 0:02:49]} 11. Kh1 {[%clk 0:02:46]}  Bb7 {[%clk 0:02:49]} 12. fxe5 {[%clk 0:02:45]}  Nxe5 {[%clk 0:02:48]} 13. Bg5 {[%clk 0:02:45]}  h6 {[%clk 0:02:47]} 14. Bf4 {[%clk 0:02:42]}  Qc7 {[%clk 0:02:43]} 15. Nd4 {[%clk 0:02:40]}  Rfd8 {[%clk 0:02:33]} 16. Nf5 {[%clk 0:02:40]}  Bf8 {[%clk 0:02:33]} 17. Bxe5 {[%clk 0:02:30]}  dxe5 {[%clk 0:02:32]} 18. Nxh6+ {[%clk 0:02:30]}  Kh8 {[%clk 0:02:20]} 19. Rxf6 {[%clk 0:02:29]}  gxf6 {[%clk 0:02:19]} 20. Nf5 {[%clk 0:02:13]}  Bc8 {[%clk 0:02:17]} 21. Qh5+ {[%clk 0:02:12]}  Kg8 {[%clk 0:02:17]} 22. Qg4+ {[%clk 0:02:09]}  Kh8 {[%clk 0:02:16]} 23. Rf1 {[%clk 0:02:04]}  Bxf5 {[%clk 0:02:13]} 24. Rxf5 {[%clk 0:02:01]}  Bg7 {[%clk 0:02:13]} 25. Nd5 {[%clk 0:01:50]}  Rxd5 {[%clk 0:02:00]} 26. exd5 {[%clk 0:01:47]}  Qc5 {[%clk 0:01:51]} 27. Rh5+ {[%clk 0:01:32]}  Kg8 {[%clk 0:01:50]} 28. Rh7 {[%clk 0:01:31]}  Qf8 {[%clk 0:01:41]} 29. Qh3 {[%clk 0:01:31]}  Qc8 {[%clk 0:01:32]} 30. Bf5 {[%clk 0:01:26]}  Qc4 {[%clk 0:01:31]} 31. Bd3 {[%clk 0:01:15]}  Qxa4 {[%clk 0:01:25]} 32. g3 {[%clk 0:00:59]}  e4 {[%clk 0:01:22]} 33. Rxg7+ {[%clk 0:00:41]}  Kxg7 {[%clk 0:01:20]} 34. Qg4+ {[%clk 0:00:42]}  Kf8 {[%clk 0:01:19]} 35. Bxe4 {[%clk 0:00:39]}  Re8 {[%clk 0:01:16]} 0-1


[Site "https://www.chess.com"]

[Event "Titled Tuesday Blitz April 18 Late 2023"]
[White "Espinosa, Pedro"]
[Black "Ramirez Vido, Robert Yorisan"]
[WhiteFideId "30921066"]
[BlackFideId "3513823"]
[WhiteElo "2016"]
[BlackElo "2403"]
[Result "1-0"]
[Round "03"]
[TimeControl "180+2"]
[Date "2023.04.18"]
[WhiteClock "0:00:57"]
[BlackClock "0:00:16"]

1. d4 {[%clk 0:03:00]}  g6 {[%clk 0:03:00]} 2. e4 {[%clk 0:02:53]}  d6 {[%clk 0:02:59]} 3. Nf3 {[%clk 0:02:52]}  Nf6 {[%clk 0:03:00]} 4. Nc3 {[%clk 0:02:50]}  Bg7 {[%clk 0:03:00]} 5. Be2 {[%clk 0:02:51]}  O-O {[%clk 0:03:00]} 6. O-O {[%clk 0:02:51]}  e5 {[%clk 0:03:01]} 7. dxe5 {[%clk 0:02:43]}  dxe5 {[%clk 0:03:02]} 8. Qxd8 {[%clk 0:02:42]}  Rxd8 {[%clk 0:03:02]} 9. Bg5 {[%clk 0:02:42]}  Re8 {[%clk 0:02:58]} 10. Nd5 {[%clk 0:02:31]}  Nxd5 {[%clk 0:02:56]} 11. exd5 {[%clk 0:02:32]}  e4 {[%clk 0:02:54]} 12. Nd2 {[%clk 0:02:28]}  Bxb2 {[%clk 0:02:45]} 13. Rab1 {[%clk 0:02:28]}  Bc3 {[%clk 0:02:42]} 14. Nc4 {[%clk 0:02:28]}  Nd7 {[%clk 0:01:57]} 15. Rb3 {[%clk 0:02:03]}  Bf6 {[%clk 0:01:54]} 16. Bf4 {[%clk 0:02:01]}  Ne5 {[%clk 0:01:45]} 17. Nxe5 {[%clk 0:01:55]}  Bxe5 {[%clk 0:01:45]} 18. Bxe5 {[%clk 0:01:56]}  Rxe5 {[%clk 0:01:45]} 19. c4 {[%clk 0:01:56]}  b6 {[%clk 0:01:44]} 20. Re3 {[%clk 0:01:47]}  f5 {[%clk 0:01:41]} 21. f4 {[%clk 0:01:46]}  Re7 {[%clk 0:01:39]} 22. Rc1 {[%clk 0:01:44]}  Ba6 {[%clk 0:01:27]} 23. Kf2 {[%clk 0:01:43]}  Rd7 {[%clk 0:01:23]} 24. h4 {[%clk 0:01:38]}  h5 {[%clk 0:01:19]} 25. Rb1 {[%clk 0:01:30]}  Rc8 {[%clk 0:01:16]} 26. Ra3 {[%clk 0:01:29]}  Bb7 {[%clk 0:01:04]} 27. Rxa7 {[%clk 0:01:26]}  Rb8 {[%clk 0:00:49]} 28. Ke3 {[%clk 0:01:19]}  Kf7 {[%clk 0:00:43]} 29. a4 {[%clk 0:01:17]}  Ke7 {[%clk 0:00:28]} 30. a5 {[%clk 0:01:15]}  Kd6 {[%clk 0:00:27]} 31. axb6 {[%clk 0:01:14]}  cxb6 {[%clk 0:00:22]} 32. Rxb6+ {[%clk 0:01:11]}  Kc7 {[%clk 0:00:22]} 33. Rxg6 {[%clk 0:01:02]}  Ra8 {[%clk 0:00:18]} 34. Rxa8 {[%clk 0:01:02]}  Bxa8 {[%clk 0:00:19]} 35. Bxh5 {[%clk 0:00:59]}  Rh7 {[%clk 0:00:18]} 36. Rg5 {[%clk 0:00:57]}  Kd6 {[%clk 0:00:17]} 37. Kd4 {[%clk 0:00:57]}  Ra7 {[%clk 0:00:16]} 38. c5+ {[%clk 0:00:57]} 1-0


[Site "https://www.chess.com"]

[Event "Titled Tuesday Blitz April 18 Late 2023"]
[White "Di Berardino, Diego Rafael"]
[Black "Yeritsyan, Hayk"]
[WhiteFideId "2105446"]
[BlackFideId "13307320"]
[WhiteElo "2432"]
[BlackElo "2398"]
[Result "0-1"]
[Round "03"]
[TimeControl "180+2"]
[Date "2023.04.18"]
[WhiteClock "0:00:09"]
[BlackClock "0:00:12"]

1. e4 {[%clk 0:03:00]}  c6 {[%clk 0:02:51]} 2. d4 {[%clk 0:03:00]}  d5 {[%clk 0:02:51]} 3. exd5 {[%clk 0:03:01]}  cxd5 {[%clk 0:02:52]} 4. Nf3 {[%clk 0:02:59]}  Nf6 {[%clk 0:02:51]} 5. Ne5 {[%clk 0:02:59]}  Nc6 {[%clk 0:02:50]} 6. Bb5 {[%clk 0:02:58]}  Bd7 {[%clk 0:02:50]} 7. Nxd7 {[%clk 0:02:58]}  Qxd7 {[%clk 0:02:50]} 8. c3 {[%clk 0:02:57]}  e6 {[%clk 0:02:50]} 9. O-O {[%clk 0:02:57]}  Bd6 {[%clk 0:02:51]} 10. Nd2 {[%clk 0:02:54]}  Qc7 {[%clk 0:02:49]} 11. Nf3 {[%clk 0:02:54]}  O-O {[%clk 0:02:48]} 12. Re1 {[%clk 0:02:54]}  Ne4 {[%clk 0:02:47]} 13. Bd3 {[%clk 0:02:52]}  f5 {[%clk 0:02:47]} 14. Qe2 {[%clk 0:02:41]}  a6 {[%clk 0:02:46]} 15. h3 {[%clk 0:02:27]}  b5 {[%clk 0:02:46]} 16. a3 {[%clk 0:02:26]}  h6 {[%clk 0:02:26]} 17. Nd2 {[%clk 0:02:24]}  Rae8 {[%clk 0:02:19]} 18. Nf1 {[%clk 0:01:43]}  Qb6 {[%clk 0:01:59]} 19. f3 {[%clk 0:01:31]}  Ng3 {[%clk 0:01:59]} 20. Qf2 {[%clk 0:01:25]}  Nxf1 {[%clk 0:01:53]} 21. Bxf1 {[%clk 0:01:25]}  f4 {[%clk 0:01:41]} 22. b4 {[%clk 0:01:07]}  e5 {[%clk 0:01:32]} 23. dxe5 {[%clk 0:01:04]}  Qxf2+ {[%clk 0:01:31]} 24. Kxf2 {[%clk 0:01:05]}  Nxe5 {[%clk 0:01:20]} 25. a4 {[%clk 0:00:59]}  Nc4 {[%clk 0:01:15]} 26. Rxe8 {[%clk 0:00:53]}  Rxe8 {[%clk 0:01:15]} 27. axb5 {[%clk 0:00:53]}  axb5 {[%clk 0:01:15]} 28. Ra6 {[%clk 0:00:47]}  Bc7 {[%clk 0:01:07]} 29. Bxc4 {[%clk 0:00:38]}  dxc4 {[%clk 0:00:57]} 30. h4 {[%clk 0:00:29]}  Be5 {[%clk 0:00:55]} 31. Bd2 {[%clk 0:00:27]}  Rd8 {[%clk 0:00:52]} 32. Ke2 {[%clk 0:00:26]}  Rd3 {[%clk 0:00:52]} 33. Rb6 {[%clk 0:00:23]}  Rd5 {[%clk 0:00:19]} 34. Be1 {[%clk 0:00:19]}  Kf7 {[%clk 0:00:18]} 35. Rb7+ {[%clk 0:00:18]}  Ke6 {[%clk 0:00:18]} 36. Rb6+ {[%clk 0:00:18]}  Kf5 {[%clk 0:00:18]} 37. h5 {[%clk 0:00:16]}  Bf6 {[%clk 0:00:15]} 38. Bd2 {[%clk 0:00:14]}  Kg5 {[%clk 0:00:14]} 39. g4 {[%clk 0:00:14]}  Re5+ {[%clk 0:00:11]} 40. Kd1 {[%clk 0:00:13]}  Rd5 {[%clk 0:00:12]} 41. Kc2 {[%clk 0:00:13]}  Re5 {[%clk 0:00:12]} 42. Kd1 {[%clk 0:00:13]}  Rd5 {[%clk 0:00:12]} 43. Kc2 {[%clk 0:00:14]}  Kh4 {[%clk 0:00:11]} 44. Bxf4 {[%clk 0:00:12]}  Kh3 {[%clk 0:00:12]} 45. Rd6 {[%clk 0:00:11]}  Rxd6 {[%clk 0:00:10]} 46. Bxd6 {[%clk 0:00:12]}  Kg2 {[%clk 0:00:11]} 47. f4 {[%clk 0:00:12]}  Kf3 {[%clk 0:00:12]} 48. Be5 {[%clk 0:00:12]}  Kxg4 {[%clk 0:00:11]} 49. Bd6 {[%clk 0:00:11]}  Kxh5 {[%clk 0:00:11]} 50. Kd2 {[%clk 0:00:12]}  Kg4 {[%clk 0:00:12]} 51. Ke3 {[%clk 0:00:12]}  Kf5 {[%clk 0:00:12]} 52. Kf3 {[%clk 0:00:11]}  h5 {[%clk 0:00:12]} 53. Bc5 {[%clk 0:00:10]}  Bxc3 {[%clk 0:00:12]} 54. Bf2 {[%clk 0:00:10]}  Bxb4 {[%clk 0:00:12]} 55. Bd4 {[%clk 0:00:10]}  g6 {[%clk 0:00:11]} 56. Be5 {[%clk 0:00:08]}  Bd2 {[%clk 0:00:11]} 57. Ke2 {[%clk 0:00:09]}  Bxf4 {[%clk 0:00:12]} 0-1


[Site "https://www.chess.com"]

[Event "Titled Tuesday Blitz April 18 Late 2023"]
[White "Fernandez Garcia, Gumersindo"]
[Black "Sabuk, Piotr"]
[WhiteFideId "24516740"]
[BlackFideId "1137565"]
[WhiteElo "2093"]
[BlackElo "2298"]
[Result "0-1"]
[Round "03"]
[TimeControl "180+2"]
[Date "2023.04.18"]
[WhiteClock "0:00:10"]
[BlackClock "0:00:16"]

1. d4 {[%clk 0:02:59]}  Nf6 {[%clk 0:02:57]} 2. c4 {[%clk 0:02:52]}  e6 {[%clk 0:02:57]} 3. Nf3 {[%clk 0:02:52]}  d5 {[%clk 0:02:53]} 4. g3 {[%clk 0:02:51]}  Be7 {[%clk 0:02:44]} 5. Bg2 {[%clk 0:02:49]}  O-O {[%clk 0:02:44]} 6. Qc2 {[%clk 0:02:49]}  c5 {[%clk 0:02:39]} 7. dxc5 {[%clk 0:02:46]}  d4 {[%clk 0:02:34]} 8. O-O {[%clk 0:02:30]}  Bxc5 {[%clk 0:02:31]} 9. a3 {[%clk 0:02:30]}  a5 {[%clk 0:02:31]} 10. Bf4 {[%clk 0:02:29]}  Nc6 {[%clk 0:02:30]} 11. Nbd2 {[%clk 0:02:29]}  Qe7 {[%clk 0:02:27]} 12. Ne5 {[%clk 0:02:14]}  Nxe5 {[%clk 0:02:22]} 13. Bxe5 {[%clk 0:02:14]}  Nd7 {[%clk 0:02:16]} 14. Nf3 {[%clk 0:01:52]}  Nxe5 {[%clk 0:02:15]} 15. Nxe5 {[%clk 0:01:52]}  Rd8 {[%clk 0:02:15]} 16. Nf3 {[%clk 0:01:47]}  e5 {[%clk 0:02:13]} 17. Rfd1 {[%clk 0:01:45]}  Bg4 {[%clk 0:02:12]} 18. h3 {[%clk 0:01:43]}  Bh5 {[%clk 0:02:12]} 19. Nh4 {[%clk 0:01:36]}  Rac8 {[%clk 0:02:03]} 20. Be4 {[%clk 0:01:28]}  Bg6 {[%clk 0:01:58]} 21. Nxg6 {[%clk 0:01:27]}  hxg6 {[%clk 0:01:59]} 22. Qd3 {[%clk 0:01:21]}  b5 {[%clk 0:01:49]} 23. cxb5 {[%clk 0:01:17]}  f5 {[%clk 0:01:49]} 24. Bc6 {[%clk 0:01:16]}  e4 {[%clk 0:01:42]} 25. Qc4+ {[%clk 0:01:15]}  Kh7 {[%clk 0:01:42]} 26. Rac1 {[%clk 0:01:08]}  Bb6 {[%clk 0:01:42]} 27. h4 {[%clk 0:01:03]}  Qe5 {[%clk 0:01:36]} 28. Kg2 {[%clk 0:01:03]}  d3 {[%clk 0:01:29]} 29. exd3 {[%clk 0:00:59]}  Rd4 {[%clk 0:01:27]} 30. Qc3 {[%clk 0:00:47]}  exd3 {[%clk 0:01:13]} 31. Rxd3 {[%clk 0:00:47]}  Rxc6 {[%clk 0:01:13]} 32. Qxc6 {[%clk 0:00:29]}  Rxd3 {[%clk 0:01:10]} 33. Qxb6 {[%clk 0:00:29]}  Qd5+ {[%clk 0:01:02]} 34. Kh2 {[%clk 0:00:29]}  Rd2 {[%clk 0:01:02]} 35. Qc5 {[%clk 0:00:27]}  Qxc5 {[%clk 0:00:54]} 36. Rxc5 {[%clk 0:00:27]}  Rxf2+ {[%clk 0:00:55]} 37. Kg1 {[%clk 0:00:27]}  Rxb2 {[%clk 0:00:56]} 38. a4 {[%clk 0:00:23]}  Kh6 {[%clk 0:00:51]} 39. Rc6 {[%clk 0:00:18]}  Rb4 {[%clk 0:00:44]} 40. Rc3 {[%clk 0:00:10]}  Kh5 {[%clk 0:00:41]} 41. Kg2 {[%clk 0:00:09]}  Kg4 {[%clk 0:00:40]} 42. Ra3 {[%clk 0:00:07]}  Rb2+ {[%clk 0:00:38]} 43. Kg1 {[%clk 0:00:07]}  g5 {[%clk 0:00:32]} 44. hxg5 {[%clk 0:00:07]}  Kxg5 {[%clk 0:00:32]} 45. Rc3 {[%clk 0:00:07]}  Kg4 {[%clk 0:00:30]} 46. Rc7 {[%clk 0:00:04]}  g5 {[%clk 0:00:30]} 47. Rc3 {[%clk 0:00:04]}  Rb4 {[%clk 0:00:29]} 48. b6 {[%clk 0:00:04]}  Rxb6 {[%clk 0:00:27]} 49. Rc5 {[%clk 0:00:05]}  Rb1+ {[%clk 0:00:24]} 50. Kg2 {[%clk 0:00:05]}  Rb2+ {[%clk 0:00:25]} 51. Kf1 {[%clk 0:00:06]}  Rb3 {[%clk 0:00:17]} 52. Rxa5 {[%clk 0:00:05]}  Rf3+ {[%clk 0:00:17]} 53. Ke2 {[%clk 0:00:05]}  Rxg3 {[%clk 0:00:17]} 54. Rb5 {[%clk 0:00:06]}  Ra3 {[%clk 0:00:17]} 55. Rb4+ {[%clk 0:00:06]}  f4 {[%clk 0:00:17]} 56. Rc4 {[%clk 0:00:06]}  Kg3 {[%clk 0:00:17]} 57. Kf1 {[%clk 0:00:07]}  g4 {[%clk 0:00:16]} 58. Rb4 {[%clk 0:00:06]}  f3 {[%clk 0:00:15]} 59. Rb1 {[%clk 0:00:06]}  Rxa4 {[%clk 0:00:15]} 60. Rc1 {[%clk 0:00:07]}  Ra2 {[%clk 0:00:15]} 61. Kg1 {[%clk 0:00:07]}  Rg2+ {[%clk 0:00:15]} 62. Kh1 {[%clk 0:00:07]}  Rh2+ {[%clk 0:00:15]} 63. Kg1 {[%clk 0:00:08]}  f2+ {[%clk 0:00:16]} 64. Kf1 {[%clk 0:00:09]}  Rh1+ {[%clk 0:00:16]} 65. Ke2 {[%clk 0:00:10]} 0-1


[Site "https://www.chess.com"]

[Event "Titled Tuesday Blitz April 18 Late 2023"]
[White "Lizak, Peter"]
[Black "Liu, Casper"]
[WhiteFideId "731595"]
[BlackFideId "1454153"]
[WhiteElo "2420"]
[BlackElo "2221"]
[Result "1-0"]
[Round "03"]
[TimeControl "180+2"]
[Date "2023.04.18"]
[WhiteClock "0:00:15"]
[BlackClock "0:00:09"]

1. d4 {[%clk 0:02:55]}  Nf6 {[%clk 0:02:59]} 2. Nc3 {[%clk 0:02:54]}  c5 {[%clk 0:02:59]} 3. d5 {[%clk 0:02:53]}  e5 {[%clk 0:02:59]} 4. e4 {[%clk 0:02:53]}  d6 {[%clk 0:03:00]} 5. Bb5+ {[%clk 0:02:53]}  Nbd7 {[%clk 0:02:58]} 6. a4 {[%clk 0:02:53]}  Be7 {[%clk 0:02:59]} 7. Nf3 {[%clk 0:02:54]}  O-O {[%clk 0:02:59]} 8. O-O {[%clk 0:02:54]}  h6 {[%clk 0:02:58]} 9. Nd2 {[%clk 0:02:54]}  a6 {[%clk 0:02:54]} 10. Be2 {[%clk 0:02:53]}  Re8 {[%clk 0:02:53]} 11. Nc4 {[%clk 0:02:52]}  Nf8 {[%clk 0:02:54]} 12. a5 {[%clk 0:02:52]}  Rb8 {[%clk 0:02:49]} 13. h3 {[%clk 0:02:46]}  g5 {[%clk 0:02:45]} 14. Be3 {[%clk 0:02:30]}  Ng6 {[%clk 0:02:44]} 15. Nb6 {[%clk 0:02:20]}  Nf4 {[%clk 0:02:42]} 16. Nxc8 {[%clk 0:02:12]}  Qxc8 {[%clk 0:02:41]} 17. Bg4 {[%clk 0:02:12]}  Nxg4 {[%clk 0:02:40]} 18. Qxg4 {[%clk 0:02:12]}  h5 {[%clk 0:02:18]} 19. Qxc8 {[%clk 0:02:08]}  Rexc8 {[%clk 0:02:19]} 20. Na4 {[%clk 0:02:02]}  Bd8 {[%clk 0:02:12]} 21. Nc3 {[%clk 0:01:45]}  b5 {[%clk 0:02:12]} 22. axb6 {[%clk 0:01:45]}  Rxb6 {[%clk 0:02:12]} 23. Na4 {[%clk 0:01:45]}  Rb4 {[%clk 0:02:09]} 24. f3 {[%clk 0:01:44]}  h4 {[%clk 0:01:56]} 25. Bd2 {[%clk 0:01:36]}  Rb7 {[%clk 0:01:51]} 26. Ra2 {[%clk 0:01:26]}  Ne2+ {[%clk 0:01:43]} 27. Kf2 {[%clk 0:01:26]}  Nd4 {[%clk 0:01:44]} 28. Rc1 {[%clk 0:01:24]}  Rcb8 {[%clk 0:01:41]} 29. Be3 {[%clk 0:01:06]}  f6 {[%clk 0:01:36]} 30. Bxd4 {[%clk 0:00:59]}  cxd4 {[%clk 0:01:33]} 31. Ke2 {[%clk 0:00:58]}  Rb5 {[%clk 0:01:18]} 32. b3 {[%clk 0:00:57]}  Rc8 {[%clk 0:01:16]} 33. Nb2 {[%clk 0:00:56]}  Rxb3 {[%clk 0:01:13]} 34. cxb3 {[%clk 0:00:50]}  Rxc1 {[%clk 0:01:12]} 35. Nc4 {[%clk 0:00:50]}  Rc3 {[%clk 0:00:49]} 36. Rxa6 {[%clk 0:00:50]}  Kf8 {[%clk 0:00:33]} 37. Nxd6 {[%clk 0:00:43]}  Rxb3 {[%clk 0:00:32]} 38. Ra8 {[%clk 0:00:44]}  Ke7 {[%clk 0:00:30]} 39. Nf5+ {[%clk 0:00:44]}  Kd7 {[%clk 0:00:30]} 40. Ra7+ {[%clk 0:00:42]}  Kc8 {[%clk 0:00:23]} 41. d6 {[%clk 0:00:37]}  d3+ {[%clk 0:00:20]} 42. Kd1 {[%clk 0:00:37]}  Kb8 {[%clk 0:00:19]} 43. Ra4 {[%clk 0:00:24]}  Kb7 {[%clk 0:00:18]} 44. Ne7 {[%clk 0:00:20]}  Kb6 {[%clk 0:00:17]} 45. Ra8 {[%clk 0:00:17]}  Kc5 {[%clk 0:00:13]} 46. Rxd8 {[%clk 0:00:15]}  Kd4 {[%clk 0:00:14]} 47. Nf5+ {[%clk 0:00:14]}  Kc3 {[%clk 0:00:12]} 48. Rc8+ {[%clk 0:00:15]}  Kb2 {[%clk 0:00:10]} 49. d7 {[%clk 0:00:15]}  Ra3 {[%clk 0:00:09]} 50. d8=Q {[%clk 0:00:15]} 1-0


[Site "https://www.chess.com"]

[Event "Titled Tuesday Blitz April 18 Late 2023"]
[White "Janaszak, Dawid"]
[Black "Ansh M Shah"]
[WhiteFideId "1119206"]
[BlackFideId "25033379"]
[WhiteElo "2220"]
[BlackElo "2084"]
[Result "0-1"]
[Round "03"]
[TimeControl "180+2"]
[Date "2023.04.18"]
[WhiteClock "0:00:48"]
[BlackClock "0:00:28"]

1. e4 {[%clk 0:03:00]}  c6 {[%clk 0:02:58]} 2. d4 {[%clk 0:02:59]}  d5 {[%clk 0:02:59]} 3. exd5 {[%clk 0:03:00]}  cxd5 {[%clk 0:02:59]} 4. Bd3 {[%clk 0:03:01]}  Nc6 {[%clk 0:02:59]} 5. c3 {[%clk 0:03:01]}  Nf6 {[%clk 0:02:59]} 6. Bf4 {[%clk 0:03:01]}  Bg4 {[%clk 0:03:00]} 7. Qb3 {[%clk 0:03:01]}  Qd7 {[%clk 0:03:01]} 8. Nd2 {[%clk 0:03:01]}  e6 {[%clk 0:03:01]} 9. Ngf3 {[%clk 0:03:01]}  Bd6 {[%clk 0:03:02]} 10. Bxd6 {[%clk 0:03:01]}  Qxd6 {[%clk 0:03:02]} 11. O-O {[%clk 0:03:02]}  O-O {[%clk 0:03:03]} 12. Rae1 {[%clk 0:03:02]}  Ne7 {[%clk 0:03:03]} 13. Ne5 {[%clk 0:02:59]}  Bf5 {[%clk 0:03:04]} 14. Bxf5 {[%clk 0:02:58]}  Nxf5 {[%clk 0:03:05]} 15. g4 {[%clk 0:02:58]}  Ne7 {[%clk 0:03:04]} 16. Re3 {[%clk 0:02:45]}  b5 {[%clk 0:02:52]} 17. h3 {[%clk 0:02:41]}  Rab8 {[%clk 0:02:49]} 18. a3 {[%clk 0:02:37]}  a5 {[%clk 0:02:47]} 19. Kg2 {[%clk 0:02:11]}  b4 {[%clk 0:02:44]} 20. cxb4 {[%clk 0:02:11]}  axb4 {[%clk 0:02:45]} 21. a4 {[%clk 0:02:12]}  Nc6 {[%clk 0:02:45]} 22. Ndf3 {[%clk 0:02:10]}  Na5 {[%clk 0:02:45]} 23. Qd1 {[%clk 0:02:07]}  Nc4 {[%clk 0:02:41]} 24. Re2 {[%clk 0:02:08]}  b3 {[%clk 0:02:41]} 25. Qd3 {[%clk 0:01:55]}  Rfc8 {[%clk 0:02:28]} 26. Ng5 {[%clk 0:01:54]}  Rc7 {[%clk 0:01:57]} 27. Ra1 {[%clk 0:01:54]}  h6 {[%clk 0:01:57]} 28. Ngf3 {[%clk 0:01:54]}  Qb4 {[%clk 0:01:49]} 29. g5 {[%clk 0:01:49]}  hxg5 {[%clk 0:01:48]} 30. Nxg5 {[%clk 0:01:49]}  Ra8 {[%clk 0:01:40]} 31. Qg3 {[%clk 0:01:32]}  Nxe5 {[%clk 0:01:31]} 32. dxe5 {[%clk 0:01:25]}  Nh5 {[%clk 0:01:26]} 33. Qf3 {[%clk 0:01:10]}  Nf4+ {[%clk 0:01:22]} 34. Kh1 {[%clk 0:01:11]}  Nxe2 {[%clk 0:01:22]} 35. Qh5 {[%clk 0:01:11]}  Rxa4 {[%clk 0:01:08]} 36. Rd1 {[%clk 0:01:10]}  Qh4 {[%clk 0:00:56]} 37. Qxe2 {[%clk 0:00:55]}  Qxg5 {[%clk 0:00:53]} 38. Qb5 {[%clk 0:00:55]}  Rac4 {[%clk 0:00:46]} 39. Qxb3 {[%clk 0:00:53]}  Qxe5 {[%clk 0:00:37]} 40. Rg1 {[%clk 0:00:52]}  Qe4+ {[%clk 0:00:30]} 41. Kh2 {[%clk 0:00:51]}  Qf4+ {[%clk 0:00:30]} 42. Rg3 {[%clk 0:00:51]}  Qxf2+ {[%clk 0:00:29]} 43. Rg2 {[%clk 0:00:51]}  Qf4+ {[%clk 0:00:28]} 44. Kh1 {[%clk 0:00:48]}  Rc1+ {[%clk 0:00:28]} 0-1


[Site "https://www.chess.com"]